bitfinex-derivatives/quotes_BTCF0:USTF0_20260131
["timestamp","ask_amount","ask_price","bid_price","bid_amount"]
[1769902260254,0.012679,78966.0,78946.0,0.03089826]
[1769902260560,0.00909595,78963.0,78938.0,0.12664159]
[1769902260755,0.012682,78951.0,78934.0,0.00013613]
[1769902261259,0.012681,78952.0,78935.0,0.12664159]
[1769902261563,0.012681,78955.0,78937.0,0.012684]
[1769902261763,0.012681,78955.0,78935.0,0.13578637]
[1769902261965,0.012681,78955.0,78935.0,0.00914478]
[1769902262165,0.012681,78953.0,78936.0,0.12667046]
[1769902262661,0.00909595,78955.0,78934.0,0.00013613]
[1769902262960,0.43652,78956.0,78907.0,0.012688]
[1769902262961,0.012685,78932.0,78907.0,0.012688]
[1769902263167,0.10268,78931.0,78907.0,0.012688]
[1769902263464,0.10268,78931.0,78911.0,0.12667126]
[1769902263465,0.012685,78927.0,78911.0,0.12667126]
[1769902263665,0.012686,78925.0,78902.0,0.10268]
[1769902263866,0.00015966,78924.0,78902.0,0.10268]
[1769902264257,0.00015966,78924.0,78905.0,0.01414478]
[1769902264462,0.00015966,78924.0,78909.0,0.00914478]
[1769902264760,0.10268,78928.0,78911.0,0.00914478]
[1769902265562,0.0001128,78927.0,78911.0,0.00914478]
[1769902265762,0.0001128,78927.0,78912.0,0.12671139]
[1769902265962,0.012686,78926.0,78912.0,0.12671139]
[1769902266163,0.0001128,78927.0,78912.0,0.12671139]
[1769902266468,0.012685,78926.0,78912.0,0.12671139]
[1769902266859,0.012686,78923.0,78905.0,0.02344524]
[1769902267264,0.012686,78923.0,78906.0,0.12671219]
[1769902268269,0.012686,78921.0,78906.0,0.12671219]
[1769902268465,0.00978368,78918.0,78893.0,0.012691]
[1769902268662,0.012687,78914.0,78890.0,0.012691]
[1769902268864,0.10268,78917.0,78898.0,0.12671942]
[1769902269064,0.10268,78917.0,78898.0,0.01797754]
[1769902269266,0.10268,78917.0,78895.0,0.10268]
[1769902269462,0.00978368,78916.0,78891.0,0.12673949]
[1769902269664,0.012689,78903.0,78873.0,0.00996616]
[1769902269864,0.00978368,78901.0,78875.0,0.012694]
[1769902270172,0.00978368,78901.0,78875.0,0.10268]
[1769902270370,0.00978368,78917.0,78885.0,0.00996616]
[1769902270566,0.00978368,78920.0,78891.0,0.00996616]
[1769902270772,0.00978368,78911.0,78883.0,0.01836363]
[1769902270969,0.012689,78905.0,78883.0,0.01836363]
[1769902271264,0.012689,78905.0,78883.0,0.00015248]
[1769902271474,0.10272,78904.0,78883.0,0.00015248]
[1769902272261,0.02247268,78902.0,78883.0,0.00015248]
[1769902273074,0.00978368,78901.0,78883.0,0.00015248]
[1769902273275,0.00978368,78899.0,78866.0,0.10272]
[1769902273474,0.00978368,78897.0,78866.0,0.10272]
[1769902273969,0.00978368,78897.0,78867.0,0.012695]
[1769902274575,0.00978368,78891.0,78866.0,0.01867058]
[1769902274867,0.00010173,78900.0,78856.0,0.13673859]
[1769902274868,0.00978368,78885.0,78856.0,0.13673859]
[1769902275273,0.00978368,78885.0,78856.0,0.00996616]
[1769902275876,0.00978368,78885.0,78856.0,0.02847083]
[1769902276382,0.00978368,78885.0,78857.0,0.012697]
[1769902279386,0.00978368,78880.0,78855.0,0.10272]
[1769902279685,0.00978368,78878.0,78852.0,0.012697]
[1769902280079,0.11560548,78879.0,78852.0,0.012697]
[1769902280080,0.09894811,78879.0,78862.0,0.00996616]
[1769902280276,0.09894811,78879.0,78857.0,0.10276]
[1769902280579,0.00978368,78878.0,78852.0,0.01801142]
[1769902280779,0.09894811,78879.0,78857.0,0.012696]
[1769902281081,0.33412,78878.0,78857.0,0.012696]
[1769902281282,0.02247668,78882.0,78857.0,0.012696]
[1769902281481,0.45164,78881.0,78857.0,0.012696]
[1769902282080,0.35866368,78880.0,78859.0,0.012696]
[1769902282286,0.10276,78879.0,78859.0,0.012696]
[1769902282480,0.00978368,78878.0,78854.0,0.12679252]
[1769902282783,0.00978368,78876.0,78853.0,0.012697]
[1769902283576,0.00978368,78874.0,78850.0,0.012698]
[1769902283977,0.00978368,78874.0,78852.0,0.012697]
[1769902284182,0.00978368,78874.0,78849.0,0.012698]
[1769902284483,0.00978368,78874.0,78851.0,0.012697]
[1769902285285,0.00978368,78874.0,78853.0,0.012697]
[1769902285483,0.115453,78879.0,78855.0,0.012697]
[1769902285678,0.00978368,78878.0,78855.0,0.012697]
[1769902287183,0.00978368,78878.0,78851.0,0.00996616]
[1769902288583,0.10276,78879.0,78862.0,0.012696]
[1769902288786,0.00978368,78896.0,78869.0,0.00996616]
[1769902288986,0.00978368,78896.0,78872.0,0.02266016]
[1769902289188,0.01269,78895.0,78872.0,0.02266016]
[1769902289783,0.012688,78908.0,78861.0,0.012696]
[1769902289784,0.00978368,78911.0,78876.0,0.00996616]
[1769902289978,0.00978368,78909.0,78876.0,0.00996616]
[1769902290188,0.00978368,78907.0,78878.0,0.012693]
[1769902290390,0.012689,78903.0,78877.0,0.012693]
[1769902290983,0.012689,78903.0,78876.0,0.00996616]
[1769902290984,0.00978368,78905.0,78876.0,0.00996616]
[1769902291180,0.012686,78924.0,78892.0,0.00996616]
[1769902291494,0.00978368,78922.0,78892.0,0.02265716]
[1769902291687,0.02247068,78915.0,78892.0,0.012691]
[1769902291885,0.02247068,78915.0,78889.0,0.1028]
[1769902291886,0.00978368,78915.0,78894.0,0.01269]
[1769902292292,0.00978368,78915.0,78891.0,0.012691]
[1769902292688,0.00978368,78915.0,78874.0,0.33424]
[1769902292689,0.012689,78906.0,78881.0,0.012693]
[1769902292891,0.00978368,78892.0,78859.0,0.00996616]
[1769902293190,0.00978368,78890.0,78866.0,0.012695]
[1769902293387,0.1028,78891.0,78863.0,0.012696]
[1769902293388,0.02247568,78887.0,78863.0,0.012696]
[1769902293585,0.26177298,78873.0,78859.0,0.02266216]
[1769902293788,0.26177298,78873.0,78854.0,0.10276]
[1769902294092,0.26177298,78873.0,78859.0,0.012696]
[1769902294391,0.26177298,78873.0,78854.0,0.10276]
[1769902295395,0.26177298,78873.0,78855.0,0.00996616]
[1769902295692,0.1028,78882.0,78866.0,0.012695]
[1769902296690,0.1028,78882.0,78866.0,0.02266116]
[1769902297494,0.26177298,78876.0,78860.0,0.012696]
[1769902297791,0.1028,78882.0,78860.0,0.012696]
[1769902298193,0.1028,78882.0,78862.0,0.012696]
[1769902299194,0.11212644,78882.0,78859.0,0.012696]
[1769902299395,0.26177298,78870.0,78859.0,0.012696]
[1769902299894,0.26177298,78870.0,78861.0,0.012696]
[1769902300289,0.00932644,78869.0,78848.0,0.01856544]
[1769902300493,0.26177298,78858.0,78848.0,0.012698]
[1769902300797,0.00932644,78868.0,78848.0,0.012698]
[1769902301599,0.00932644,78868.0,78845.0,0.1028]
[1769902301799,0.00932644,78868.0,78846.0,0.012698]
[1769902303301,0.1028,78869.0,78849.0,0.00945571]
[1769902303890,0.1028,78869.0,78852.0,0.012697]
[1769902304399,0.1028,78869.0,78853.0,0.012697]
[1769902305692,0.26177298,78870.0,78855.0,0.012697]
[1769902305893,0.1028,78869.0,78852.0,0.012697]
[1769902306093,0.012693,78882.0,78853.0,0.00945571]
[1769902306296,0.1713623,78881.0,78862.0,0.012696]
[1769902306495,0.45144,78883.0,78860.0,0.00945571]
[1769902306696,0.17135204,78882.0,78860.0,0.00945571]
[1769902306898,0.45144,78883.0,78860.0,0.00945571]
[1769902307100,0.45144,78883.0,78864.0,0.012695]
[1769902307998,0.17844892,78882.0,78864.0,0.012695]
[1769902308200,0.17844892,78881.0,78861.0,0.012696]
[1769902308504,0.17844892,78880.0,78863.0,0.012696]
[1769902308703,0.17844892,78879.0,78863.0,0.012696]
[1769902308907,0.45144,78883.0,78863.0,0.012696]
[1769902309198,0.17844163,78882.0,78863.0,0.012696]
[1769902309404,0.45144,78883.0,78863.0,0.012696]
[1769902309599,0.45144,78883.0,78860.0,0.00945571]
[1769902309600,0.17843397,78882.0,78860.0,0.00945571]
[1769902309806,0.26177298,78870.0,78856.0,0.1028]
[1769902310302,0.27148941,78870.0,78856.0,0.1028]
[1769902310796,0.26177298,78870.0,78856.0,0.1028]
[1769902312101,0.26177298,78870.0,78858.0,0.012696]
[1769902312296,0.26177298,78870.0,78856.0,0.1028]
[1769902313097,0.45144,78883.0,78858.0,0.00945571]
[1769902313302,0.1028,78883.0,78870.0,0.00945571]
[1769902313800,0.1028,78883.0,78869.0,0.012695]
[1769902314108,0.1028,78883.0,78867.0,0.00945571]
[1769902314301,0.1028,78883.0,78868.0,0.012695]
[1769902315405,0.1028,78883.0,78861.0,0.00945571]
[1769902315609,0.1028,78883.0,78855.0,0.1028]
[1769902315610,0.26177298,78871.0,78863.0,0.012695]
[1769902315802,0.1028,78883.0,78856.0,0.00945571]
[1769902316003,0.1028,78883.0,78864.0,0.12678208]
[1769902316205,0.00971643,78882.0,78860.0,0.012696]
[1769902316400,0.012692,78887.0,78862.0,0.012696]
[1769902316605,0.18000974,78886.0,78867.0,0.02215071]
[1769902316813,0.26177298,78890.0,78869.0,0.012695]
[1769902317004,0.18000442,78889.0,78869.0,0.012695]
[1769902317204,0.26177298,78890.0,78867.0,0.11225571]
[1769902317411,0.17947658,78889.0,78867.0,0.11225571]
[1769902317706,0.012691,78892.0,78867.0,0.11225571]
[1769902317707,0.24964612,78916.0,78881.0,0.00945571]
[1769902317906,0.17646461,78915.0,78892.0,0.012691]
[1769902318107,0.00971643,78921.0,78899.0,0.01269]
[1769902318304,0.11251643,78921.0,78894.0,0.00945571]
[1769902318504,0.26177298,78910.0,78888.0,0.012691]
[1769902318712,0.26177298,78910.0,78889.0,0.1028]
[1769902318914,0.27148941,78910.0,78889.0,0.1028]
[1769902319206,0.012686,78923.0,78859.0,0.00945571]
[1769902319207,0.00971643,78898.0,78859.0,0.00945571]
[1769902319511,0.00971643,78896.0,78866.0,0.13943851]
[1769902319714,0.00971643,78896.0,78866.0,0.12674351]
[1769902319912,0.00971643,78896.0,78865.0,0.1028]
[1769902319913,0.00971643,78896.0,78865.0,0.115495]
[1769902320208,0.00971643,78896.0,78866.0,0.12674351]
[1769902320405,0.26177298,78880.0,78866.0,0.12674351]
[1769902320802,0.1028,78887.0,78866.0,0.12674351]
[1769902321205,0.1028,78887.0,78871.0,0.012694]
[1769902322112,0.1028,78887.0,78866.0,0.012695]
[1769902322515,0.1028,78887.0,78866.0,0.13947145]
[1769902323111,0.1028,78887.0,78866.0,0.24227145]
[1769902323516,0.00971643,78886.0,78866.0,0.13947145]
[1769902324207,0.1028,78887.0,78866.0,0.13947145]
[1769902324714,0.1028,78887.0,78872.0,0.00945571]
[1769902325018,0.1028,78899.0,78885.0,0.012692]
[1769902325311,0.00971643,78910.0,78895.0,0.01269]
[1769902325312,0.1028,78910.0,78895.0,0.01269]
[1769902325614,0.1028,78922.0,78895.0,0.01269]
[1769902325908,0.1028,78922.0,78896.0,0.12677565]
[1769902326112,0.1028,78922.0,78898.0,0.01269]
[1769902326315,0.1028,78922.0,78898.0,0.11549]
[1769902326612,0.1028,78922.0,78901.0,0.012689]
[1769902327516,0.1028,78922.0,78904.0,0.012689]
[1769902327717,0.1028,78922.0,78907.0,0.012688]
[1769902328409,0.26177298,78950.0,78907.0,0.012688]
[1769902328410,0.00997303,78939.0,78916.0,0.012687]
[1769902328917,0.00997303,78939.0,78912.0,0.012688]
[1769902329516,0.00997303,78939.0,78915.0,0.012687]
[1769902331412,0.00997303,78939.0,78911.0,0.012688]
[1769902331713,0.00997303,78939.0,78916.0,0.012687]
[1769902334516,0.00997303,78939.0,78918.0,0.012687]
[1769902335311,0.00997303,78939.0,78918.0,0.03215089]
[1769902335516,0.00997303,78939.0,78920.0,0.012686]
[1769902335717,0.00997303,78938.0,78918.0,0.01946389]
[1769902335918,0.00997303,78938.0,78913.0,0.012687]
[1769902336319,0.00997303,78930.0,78908.0,0.10276]
[1769902336506,0.10276,78929.0,78908.0,0.11196811]
[1769902336707,0.10276,78929.0,78909.0,0.00920811]
[1769902336920,0.10276,78941.0,78921.0,0.012686]
[1769902337116,0.10276,78941.0,78917.0,0.00920811]
[1769902337313,0.10276,78941.0,78929.0,0.012685]
[1769902337712,0.10276,78941.0,78928.0,0.012685]
[1769902337914,0.10276,78941.0,78930.0,0.012685]
[1769902338117,0.10276,78951.0,78930.0,0.012685]
[1769902338322,0.10276,78951.0,78927.0,0.10276]
[1769902338621,0.10276,78951.0,78933.0,0.012684]
[1769902338922,0.10276,78951.0,78928.0,0.00920811]
[1769902339222,0.10276,78951.0,78931.0,0.012685]
[1769902339623,0.26177298,78950.0,78931.0,0.012685]
[1769902339816,0.00997303,78949.0,78928.0,0.012685]
[1769902340015,0.00997303,78949.0,78930.0,0.012685]
[1769902340218,0.26177298,78950.0,78932.0,0.012684]
[1769902342820,0.27174601,78950.0,78932.0,0.012684]
[1769902343017,0.26177298,78950.0,78929.0,0.00920811]
[1769902343223,0.26177298,78950.0,78936.0,0.012684]
[1769902343522,0.26177298,78950.0,78929.0,0.00920811]
[1769902343717,0.26177298,78950.0,78935.0,0.00920811]
[1769902343917,0.00997303,78964.0,78945.0,0.012682]
[1769902344118,0.26177298,78955.0,78943.0,0.10272]
[1769902344324,0.27174601,78955.0,78944.0,0.10272]
[1769902344525,0.00997303,78954.0,78944.0,0.10272]
[1769902344725,0.00997303,78954.0,78937.0,0.10272]
[1769902345319,0.00997303,78953.0,78937.0,0.10272]
[1769902345626,0.00997303,78951.0,78937.0,0.10272]
[1769902346517,0.00997303,78943.0,78916.0,0.10272]
[1769902346725,0.26177298,78932.0,78927.0,0.012685]
[1769902346929,0.10272,78944.0,78925.0,0.00920811]
[1769902347226,0.26177298,78940.0,78926.0,0.00920811]
[1769902347431,0.26177298,78940.0,78926.0,0.11192811]
[1769902348430,0.26177298,78940.0,78928.0,0.012685]
[1769902349325,0.27174601,78940.0,78922.0,0.012686]
[1769902349524,0.00997303,78939.0,78922.0,0.012686]
[1769902350126,0.00997303,78939.0,78927.0,0.012685]
[1769902350325,0.26177298,78940.0,78927.0,0.012685]
[1769902350630,0.27174601,78940.0,78924.0,0.012686]
[1769902350832,0.00997303,78939.0,78924.0,0.012686]
[1769902351633,0.00997303,78939.0,78925.0,0.12669213]
[1769902352631,0.26177298,78940.0,78929.0,0.00920811]
[1769902352935,0.10272,78953.0,78932.0,0.00920811]
[1769902353130,0.10272,78953.0,78934.0,0.00920811]
[1769902353329,0.10272,78953.0,78935.0,0.11192811]
[1769902353730,0.10272,78953.0,78938.0,0.012683]
[1769902354131,0.10272,78953.0,78935.0,0.12461211]
[1769902354730,0.10272,78953.0,78935.0,0.11192811]
[1769902356928,0.10272,78953.0,78936.0,0.012684]
[1769902357635,0.10272,78953.0,78935.0,0.11192811]
[1769902357836,0.10272,78953.0,78937.0,0.012684]
[1769902358937,0.10272,78953.0,78935.0,0.11192811]
[1769902359737,0.10272,78953.0,78935.0,0.12461211]
[1769902360240,0.10272,78953.0,78936.0,0.012684]
[1769902360739,0.11207354,78953.0,78935.0,0.10272]
[1769902361034,0.11207354,78953.0,78937.0,0.012684]
[1769902361240,0.11207354,78953.0,78935.0,0.10272]
[1769902361241,0.11207354,78953.0,78935.0,0.115404]
[1769902361434,0.11207354,78953.0,78935.0,0.10272]
[1769902361939,0.11207354,78953.0,78937.0,0.012684]
[1769902363043,0.11207354,78953.0,78935.0,0.10272]
[1769902363546,0.11207354,78953.0,78936.0,0.012684]
[1769902364244,0.11207354,78953.0,78935.0,0.10272]
[1769902364245,0.00950077,78949.0,78935.0,0.10272]
[1769902364744,0.00950077,78947.0,78935.0,0.10272]
[1769902365338,0.00950077,78947.0,78927.0,0.012685]
[1769902365645,0.00950077,78947.0,78929.0,0.012685]
[1769902365847,0.10272,78953.0,78930.0,0.00908379]
[1769902366040,0.10272,78953.0,78931.0,0.10272]
[1769902366544,0.10272,78953.0,78932.0,0.13575907]
[1769902366744,0.10272,78953.0,78936.0,0.012684]
[1769902368345,0.10272,78953.0,78933.0,0.02176779]
[1769902368546,0.10272,78953.0,78933.0,0.012684]
[1769902368547,0.00950077,78952.0,78933.0,0.012684]
[1769902370150,0.00950077,78952.0,78935.0,0.012684]
[1769902370849,0.00950077,78952.0,78932.0,0.012684]
[1769902371151,0.00950077,78948.0,78922.0,0.10272]
[1769902371349,0.00950077,78946.0,78928.0,0.012685]
[1769902371549,0.00950077,78946.0,78931.0,0.012685]
[1769902374145,0.00950077,78946.0,78929.0,0.012685]
[1769902375449,0.00950077,78949.0,78929.0,0.012685]
[1769902376044,0.012683,78945.0,78928.0,0.00908379]
[1769902376246,0.00950077,78947.0,78928.0,0.00908379]
[1769902376646,0.00950077,78947.0,78928.0,0.02176879]
[1769902377850,0.00950077,78947.0,78928.0,0.012685]
[1769902378453,0.00950077,78945.0,78928.0,0.012685]
[1769902380255,0.02218277,78945.0,78928.0,0.012685]
[1769902380854,0.012682,78945.0,78928.0,0.02176879]
[1769902381057,0.00950077,78963.0,78931.0,0.00908379]
[1769902381247,0.00950077,78963.0,78929.0,0.1266841]
[1769902381248,0.10272,78967.0,78951.0,0.00908379]
[1769902381449,0.10272,78972.0,78951.0,0.00908379]
[1769902381850,0.00950077,78969.0,78949.0,0.012682]
[1769902382050,0.00950077,78968.0,78945.0,0.115402]
[1769902382355,0.01268,78962.0,78949.0,0.12666725]
[1769902382554,0.00950077,78959.0,78945.0,0.10272]
[1769902382756,0.00950077,78957.0,78945.0,0.09860087]
[1769902383054,0.00950077,78945.0,78923.0,0.012686]
[1769902383251,0.00950077,78943.0,78920.0,0.115406]
[1769902383452,0.00950077,78941.0,78920.0,0.115406]
[1769902383852,0.00950077,78941.0,78922.0,0.012686]
[1769902384456,0.00950077,78941.0,78922.0,0.10951463]
[1769902384649,0.00950077,78941.0,78922.0,0.09682863]
[1769902384955,0.10272,78942.0,78920.0,0.10272]
[1769902384956,0.00950077,78939.0,78920.0,0.10272]
[1769902385150,0.00950077,78939.0,78920.0,0.19954863]
[1769902385350,0.00950077,78939.0,78922.0,0.09682863]
[1769902385752,0.012684,78938.0,78923.0,0.09682863]
[1769902385951,0.012684,78938.0,78922.0,0.09682863]
[1769902386152,0.012684,78938.0,78924.0,0.09682863]
[1769902386355,0.012684,78938.0,78920.0,0.10272]
[1769902386356,0.012684,78938.0,78923.0,0.09682863]
[1769902386758,0.012684,78938.0,78924.0,0.09682863]
[1769902386958,0.012684,78938.0,78923.0,0.09682863]
[1769902387358,0.012684,78938.0,78924.0,0.09682863]
[1769902387553,0.012684,78938.0,78923.0,0.09682863]
[1769902387749,0.00950077,78939.0,78923.0,0.09682863]
[1769902387953,0.00950077,78939.0,78924.0,0.09682863]
[1769902388154,0.00950077,78939.0,78924.0,0.012686]
[1769902388455,0.00950077,78939.0,78924.0,0.09682863]
[1769902389349,0.00950077,78939.0,78925.0,0.09682863]
[1769902389549,0.00904951,78938.0,78923.0,0.09682863]
[1769902389754,0.012684,78937.0,78923.0,0.09682863]
[1769902389953,0.012684,78937.0,78925.0,0.09682863]
[1769902390163,0.00904951,78938.0,78923.0,0.09682863]
[1769902390658,0.00904951,78938.0,78925.0,0.09682863]
[1769902390853,0.00904951,78938.0,78918.0,0.00965806]
[1769902390854,0.00904951,78937.0,78923.0,0.09682863]
[1769902391059,0.00904951,78937.0,78922.0,0.09682863]
[1769902391255,0.00904951,78937.0,78924.0,0.09682863]
[1769902391460,0.00904951,78937.0,78923.0,0.09682863]
[1769902391660,0.00904951,78937.0,78921.0,0.012686]
[1769902391856,0.00904951,78935.0,78924.0,0.09682863]
[1769902392057,0.00904951,78933.0,78913.0,0.012687]
[1769902392256,0.00904951,78931.0,78913.0,0.012687]
[1769902392463,0.00904951,78929.0,78914.0,0.12669534]
[1769902392762,0.00904951,78920.0,78900.0,0.01279332]
[1769902392963,0.012687,78915.0,78900.0,0.00010332]
[1769902393365,0.012687,78915.0,78903.0,0.09682863]
[1769902393863,0.012688,78913.0,78904.0,0.09682863]
[1769902394058,0.00904951,78952.0,78924.0,0.00965806]
[1769902394260,0.115402,78950.0,78932.0,0.012684]
[1769902394463,0.01268,78960.0,78941.0,0.00965806]
[1769902394659,0.115399,78967.0,78952.0,0.00965806]
[1769902394864,0.10272,78966.0,78952.0,0.00965806]
[1769902395265,0.10272,78966.0,78955.0,0.00965806]
[1769902395666,0.10272,78966.0,78956.0,0.07146263]
[1769902396360,0.012678,78976.0,78962.0,0.07146263]
[1769902396561,0.012678,78976.0,78955.0,0.00965806]
[1769902396757,0.10272,78975.0,78955.0,0.00965806]
[1769902396959,0.10272,78975.0,78957.0,0.07146263]
[1769902397160,0.11176951,78975.0,78957.0,0.07146263]
[1769902397363,0.012677,78980.0,78959.0,0.00965806]
[1769902397563,0.012676,78984.0,78960.0,0.00965806]
[1769902398869,0.10272,78985.0,78960.0,0.00965806]
[1769902399370,0.10272,78985.0,78959.0,0.01268]
[1769902399371,0.10272,78985.0,78969.0,0.07146263]
[1769902399772,0.10272,78985.0,78974.0,0.07146263]
[1769902400065,0.10272,78985.0,78962.0,0.01268]
[1769902400066,0.10272,78985.0,78971.0,0.07146263]
[1769902400468,0.10272,78985.0,78975.0,0.07146263]
[1769902400668,0.10272,78985.0,78971.0,0.07146263]
[1769902400872,0.10272,78985.0,78972.0,0.07146263]
[1769902401371,0.10272,78985.0,78976.0,0.07146263]
[1769902401572,0.10272,78985.0,78965.0,0.10268]
[1769902401573,0.012674,78996.0,78978.0,0.07146263]
[1769902401871,0.012674,78996.0,78973.0,0.00965806]
[1769902402067,0.012674,78996.0,78976.0,0.07146263]
[1769902402274,0.10268,78995.0,78976.0,0.07146263]
[1769902402473,0.012675,78994.0,78978.0,0.07146263]
[1769902402670,0.012672,79009.0,78986.0,0.012676]
[1769902403071,0.02172151,79009.0,78986.0,0.012676]
[1769902403274,0.012672,79007.0,78986.0,0.012676]
[1769902403471,0.00904951,79008.0,78988.0,0.012675]
[1769902403673,0.00904951,79008.0,78990.0,0.012675]
[1769902403871,0.10268,79012.0,78992.0,0.012675]
[1769902404466,0.10268,79012.0,78992.0,0.08413763]
[1769902404672,0.10268,79012.0,78999.0,0.07146263]
[1769902404875,0.10268,79012.0,79000.0,0.07146263]
[1769902405070,0.10268,79012.0,79001.0,0.07146263]
[1769902405270,0.10268,79022.0,79005.0,0.07146263]
[1769902405568,0.10268,79022.0,79002.0,0.012673]
[1769902405769,0.10268,79022.0,79004.0,0.07146263]
[1769902405972,0.10268,79022.0,79005.0,0.00965806]
[1769902406171,0.10268,79032.0,79015.0,0.07146263]
[1769902406365,0.012668,79036.0,79012.0,0.10268]
[1769902406565,0.012667,79044.0,79015.0,0.012671]
[1769902406969,0.02171651,79044.0,79015.0,0.012671]
[1769902407171,0.02171651,79044.0,79018.0,0.07146263]
[1769902407673,0.02171651,79044.0,79020.0,0.07146263]
[1769902407878,0.02171651,79044.0,79018.0,0.08413363]
[1769902408068,0.02171651,79044.0,79018.0,0.02232906]
[1769902408267,0.02171651,79044.0,79020.0,0.07146263]
[1769902408672,0.02171651,79044.0,79021.0,0.07146263]
[1769902408873,0.02171651,79044.0,79020.0,0.07146263]
[1769902409175,0.10268,79047.0,79026.0,0.07146263]
[1769902409368,0.10268,79047.0,79025.0,0.07146263]
[1769902409569,0.10268,79047.0,79026.0,0.08112069]
[1769902409975,0.10268,79047.0,79029.0,0.07146263]
[1769902410376,0.10268,79047.0,79031.0,0.07146263]
[1769902410570,0.10268,79047.0,79029.0,0.07146263]
[1769902410885,0.10268,79047.0,79030.0,0.07146263]
[1769902411271,0.10268,79047.0,79032.0,0.012668]
[1769902411472,0.10268,79047.0,79036.0,0.07146263]
[1769902411778,0.10268,79047.0,79038.0,0.07146263]
[1769902412272,0.10268,79047.0,79042.0,0.07146263]
[1769902412477,0.00904951,79065.0,79046.0,0.07146263]
[1769902412679,0.02171251,79065.0,79041.0,0.012667]
[1769902412885,0.10264,79064.0,79043.0,0.09378769]
[1769902413170,0.012663,79068.0,79046.0,0.00965806]
[1769902413378,0.115302,79071.0,79051.0,0.07146263]
[1769902413570,0.10264,79071.0,79063.0,0.07146263]
[1769902413772,0.02171051,79079.0,79070.0,0.07146263]
[1769902413973,0.02171051,79079.0,79063.0,0.07146263]
[1769902413974,0.012661,79079.0,79063.0,0.07146263]
[1769902414275,0.10264,79080.0,79065.0,0.07146263]
[1769902414476,0.00904951,79093.0,79069.0,0.00965806]
[1769902414780,0.02171051,79081.0,79061.0,0.1026]
[1769902415176,0.02171051,79081.0,79067.0,0.07146263]
[1769902415783,0.00904951,79071.0,79047.0,0.012666]
[1769902415975,0.00904951,79071.0,79049.0,0.012666]
[1769902416279,0.00904951,79071.0,79053.0,0.12646381]
[1769902416482,0.1026,79082.0,79057.0,0.00965806]
[1769902416780,0.012661,79081.0,79058.0,0.02232206]
[1769902416974,0.012661,79081.0,79059.0,0.00965806]
[1769902417180,0.00994985,79078.0,79059.0,0.12648621]
[1769902417680,0.00994985,79066.0,79045.0,0.012666]
[1769902417875,0.00994985,79064.0,79045.0,0.012666]
[1769902418082,0.00994985,79064.0,79045.0,0.13913861]
[1769902419883,0.1026,79079.0,79055.0,0.00976716]
[1769902420080,0.1026,79079.0,79056.0,0.00976716]
[1769902420279,0.1026,79079.0,79058.0,0.00976716]
[1769902420982,0.1026,79079.0,79055.0,0.115265]
[1769902420983,0.1026,79079.0,79060.0,0.00976716]
[1769902421378,0.1026,79079.0,79055.0,0.1026]
[1769902421379,0.012662,79075.0,79055.0,0.1026]
[1769902421682,0.012662,79071.0,79055.0,0.1026]
[1769902422078,0.00962341,79070.0,79055.0,0.1026]
[1769902422279,0.00962341,79061.0,79046.0,0.10256]
[1769902422480,0.00962341,79059.0,79046.0,0.10256]
[1769902422881,0.00962341,79059.0,79029.0,0.00944679]
[1769902423084,0.012665,79056.0,79030.0,0.10256]
[1769902423276,0.00962341,79059.0,79034.0,0.12649661]
[1769902423585,0.10256,79064.0,79041.0,0.00944679]
[1769902423888,0.26040995,79060.0,79041.0,0.00944679]
[1769902424181,0.26040995,79070.0,79052.0,0.012665]
[1769902424388,0.01266,79082.0,79057.0,0.00944679]
[1769902424586,0.01266,79082.0,79059.0,0.00944679]
[1769902425177,0.10256,79083.0,79060.0,0.00944679]
[1769902425492,0.26040995,79070.0,79060.0,0.12648461]
[1769902425684,0.26040995,79070.0,79054.0,0.012665]
[1769902425890,0.26040995,79070.0,79057.0,0.012664]
[1769902426590,0.04316486,79070.0,79060.0,0.00944679]
[1769902426780,0.10256,79083.0,79062.0,0.00944679]
[1769902427288,0.01266,79084.0,79063.0,0.12648061]
[1769902427983,0.26040995,79080.0,79063.0,0.12648061]
[1769902428290,0.00962341,79079.0,79055.0,0.012665]
[1769902428492,0.26040995,79065.0,79051.0,0.012665]
[1769902428684,0.26040995,79065.0,79049.0,0.10256]
[1769902428883,0.00962341,79069.0,79049.0,0.10256]
[1769902429082,0.26040995,79060.0,79043.0,0.012667]
[1769902429489,0.26040995,79060.0,79045.0,0.12647501]
[1769902429789,0.26040995,79060.0,79043.0,0.012667]
[1769902430190,0.26040995,79060.0,79044.0,0.12649981]
[1769902430488,0.27003336,79060.0,79038.0,0.10256]
[1769902430683,0.00962341,79059.0,79038.0,0.10256]
[1769902430888,0.26040995,79060.0,79041.0,0.012667]
[1769902431289,0.26040995,79060.0,79038.0,0.10256]
[1769902431591,0.26040995,79060.0,79042.0,0.12649901]
[1769902431890,0.26040995,79060.0,79040.0,0.012667]
[1769902432688,0.26040995,79060.0,79041.0,0.12650381]
[1769902433789,0.26040995,79060.0,79042.0,0.012667]
[1769902434491,0.26040995,79060.0,79043.0,0.12650141]
[1769902434888,0.26040995,79060.0,79047.0,0.012666]
[1769902435089,0.26040995,79060.0,79047.0,0.115226]
[1769902435284,0.26040995,79060.0,79049.0,0.012666]
[1769902435491,0.26040995,79060.0,79048.0,0.12650061]
[1769902435690,0.26040995,79060.0,79049.0,0.012666]
[1769902436291,0.10256,79069.0,79049.0,0.012666]
[1769902436793,0.11218341,79069.0,79049.0,0.012666]
[1769902437089,0.00962341,79068.0,79047.0,0.10256]
[1769902437290,0.26040995,79060.0,79047.0,0.115226]
[1769902437492,0.26040995,79060.0,79048.0,0.12648781]
[1769902438391,0.10256,79068.0,79048.0,0.12648781]
[1769902438594,0.26040995,79060.0,79048.0,0.12648781]
[1769902439799,0.26040995,79060.0,79049.0,0.012666]
[1769902440599,0.26040995,79060.0,79051.0,0.012665]
[1769902441093,0.26040995,79060.0,79048.0,0.012666]
[1769902441491,0.00962341,79056.0,79036.0,0.012668]
[1769902442395,0.00962341,79056.0,79030.0,0.120714]
[1769902442396,0.10256,79059.0,79042.0,0.012667]
[1769902443594,0.00962341,79058.0,79042.0,0.012667]
[1769902443797,0.00962341,79058.0,79039.0,0.012667]
[1769902444600,0.00962341,79058.0,79041.0,0.012667]
[1769902444788,0.10256,79059.0,79041.0,0.012667]
[1769902444994,0.26040995,79051.0,79041.0,0.012667]